Cogmind - Beta 16 @@@ ROGUE MODE // 2025.12.08 @ 21:46:14 Player: tionichm Result: Destroyed by OZ-2U4(R) with Subdweller Laser Performance ------------- Evolutions (0) 0 Regions Visited (2) 400 Robots Destroyed (15) 75 Value Destroyed (428) 428 Prototype IDs (0) 0 Alien Tech Used (0) 0 Bonus (0) 0 TOTAL SCORE: 903 Bonus ------- None Cogmind --------- Core Integrity 0/250 Matter 300/300 Energy 99/100 System Corruption 0% Temperature Cool (6) Movement Core (200) Ox3 Location -10/Subcaves Parts ------- > --- POWER (1) -------- (None) > --- PROPULSION (2) --- (None) > --- UTILITY (2) ------ Medium Storage Unit ECM Suite > --- WEAPON (2) ------- (None) > --- INVENTORY (10) --- Ion Engine Small Storage Unit Visual Processing Unit Utility Shielding Light Armor Plating Rocket Launcher Hammer Peak State ------------ > --- POWER ------------ Ion Engine > --- PROPULSION ------- Aluminum Leg Aluminum Leg > --- UTILITY ---------- Small Storage Unit ECM Suite > --- WEAPON ----------- Assault Rifle Assault Rifle > --- INVENTORY -------- Ion Engine Light Treads Aluminum Leg Improved Heat Sink Utility Shielding Utility Shielding Tractor Beam Light Assault Rifle [Rating: 8] Favorites ----------- Power Ion Engine Engine Ion Engine Propulsion Aluminum Leg Leg Aluminum Leg Utility ECM Suite Device ECM Suite Storage Medium Storage Unit Weapon Assault Rifle Ballistic Gun Assault Rifle Ballistic Cannon Light Cannon Impact Weapon Hammer Build | -11 -10 -10 ------- Run | Yrd Mat Sub Slots Evolved . | . . . Power . | . . . Propulsion . | . . . Utility . | . . . Weapon . | . . . Parts Attached 15 | 7 7 1 Power 2 | 1 1 . Engine 2 | 1 1 . Core . | . . . Reactor . | . . . Propulsion 4 | 2 2 . Treads . | . . . Leg 4 | 2 2 . Wheel . | . . . Hover . | . . . Flight . | . . . Utility 4 | 2 2 . Device 2 | 1 1 . Storage 2 | 1 1 . Processor . | . . . Hackware . | . . . Protection . | . . . Artifact . | . . . Weapon 5 | 2 2 1 Energy Gun . | . . . Energy Cannon . | . . . Ballistic Gun 3 | 2 . 1 Ballistic Cannon 1 | . 1 . Launcher . | . . . Special Weapon . | . . . Impact Weapon 1 | . 1 . Slashing Weapon . | . . . Piercing Weapon . | . . . Special Melee Weapon . | . . . Unidentified Prototypes . | . . . Parts Lost 6 | . 1 5 Power 1 | . . 1 Propulsion 3 | . 1 2 Utility . | . . . Weapon 2 | . . 2 Highest Loss Streak 5 | . 1 5 To Critical Strikes . | . . . Average Backups 7 | 2 7 7 Power 1 | 1 1 1 Propulsion . | . 1 . Utility 3 | . 3 4 Weapon 2 | . 2 2 Tool/Special . | . . . Unused Backups 7 | . 3 4 Power . | . . . Propulsion 1 | . 1 . Utility 5 | . 2 3 Weapon 1 | . . 1 Tool/Special . | . . . Average Slot Usage (%) 98 | . 98 98 Engine 13 | . 13 14 Leg 27 | . 27 26 Device 14 | . 14 14 Storage 14 | . 14 14 Ballistic Gun 10 | . 10 14 Ballistic Cannon 10 | . 10 7 Impact Weapon 7 | . 7 7 Peak Build Rating 8 | 7 8 8 Average Rating 7 | 4 7 7 On Entrance 5 | . 7 8 Avg Prop Armor Cover (%) . | . . . Naked Turns . | . . . Heaviest Build 22 | 15 22 22 Greatest Support 20 | 20 20 20 Greatest Overweight (x) 3 | . 2 3 Average Overweight (x) . | . . . Largest Inventory Capacity 10 | 8 10 10 Average Capacity 9 | 7 9 10 Most Carried 10 | 5 10 8 Average Carried 7 | 2 7 7 Final Capacity 10 | 8 10 10 Final Carried 8 | 3 8 7 Class Distribution -------------------- 100% | Mutant Dominant Class ---------------- Mutant | -10/Materials Mutant | -10/Subcaves Resources | -11 -10 -10 ----------- Run | Yrd Mat Sub Matter Collected 625 | 237 348 40 Remotely . | . . . Salvage Created 605 | 61 544 . Parts 20 | 3 17 . Haulers Intercepted . | . . . Recyclers Shooed . | . . . Parts Field Recycled . | . . . Retrieved Matter . | . . . Parts Self-Destructed 8 | . . 8 Prevented . | . . . Parts Restored . | . . . Kills | -11 -10 -10 ------- Run | Yrd Mat Sub Combat Hostiles Destroyed 10 | . 10 . Melee 3 | . 3 . Guns 5 | . 5 . Cannons 1 | . 1 . Classes Destroyed 5 | 1 4 . Worker 1 | . 1 . Tunneler 1 | . 1 . Recycler 2 | 1 1 . Watcher 1 | . 1 . Grunt 10 | . 10 . Best Kill Streak 4 | 1 4 . Combat Bots Only 2 | . 2 . Max Kills in Single Turn 1 | 1 1 . Gunslinging . | . . . Exploded . | . . . Melee 1 | . 1 . Uniques/NPCs Destroyed . | . . . Combat | -11 -10 -10 -------- Run | Yrd Mat Sub Hostile Shots Fired 95 | . 72 23 Missed 24 | . 19 5 Hits 71 | . 53 18 Projectile 71 | . 53 18 Critical Strikes 1 | . 1 . Damage Taken 1162 | . 755 407 Core 252 | . 171 81 Absorbed by Shields . | . . . Regen/Repaired (Parts) 58 | . 58 . Core Remaining (%) 100 | 100 . . Volleys Fired 51 | 6 38 7 Largest 2 | 2 2 2 Hottest 50 | 40 50 40 Shots Fired 86 | 12 63 11 Gun 68 | 12 48 8 Cannon 18 | . 15 3 Launcher . | . . . Special . | . . . Kinetic 86 | 12 63 11 Thermal . | . . . Explosive . | . . . Electromagnetic . | . . . Robot Hit Streak 8 | 5 8 3 Robot Miss Streak 5 | 2 5 4 Penetration Max . | . . . Secondary Targets 1 | . 1 . Max Gunslinging Chain 1 | . 1 . Shots Hit Robots 61 | 8 47 6 Core Hits 21 | 2 18 1 Critical Kills 2 | 1 1 . Critical Parts Destroyed 3 | 1 2 . Critical Strikes 6 | 2 4 . Destroy 2 | 2 . . Blast 1 | . 1 . Smash 3 | . 3 . Melee Attacks 13 | . 13 . Impact 13 | . 13 . Slashing . | . . . Piercing . | . . . Sneak Attacks 3 | . 3 . Combat Hostiles . | . . . Follow-up Attacks . | . . . Damage Inflicted 1006 | 108 839 59 Guns 532 | 108 381 43 Cannons 139 | . 123 16 Explosions . | . . . Melee 335 | . 335 . Ramming . | . . . Kinetic 671 | 108 504 59 Thermal . | . . . Explosive . | . . . Electromagnetic . | . . . Impact 335 | . 335 . Slashing . | . . . Piercing . | . . . Highest Corruption . | . . . Average Corruption . | . . . Corruption Purged . | . . . Corruption Blocked . | . . . Overload Shots . | . . . Overflow Damage 122 | . 122 . Projectiles . | . . . Explosions . | . . . Melee 122 | . 122 . Knockbacks 4 | . 3 1 Impact 1 | . 1 . Kinetic 3 | . 2 1 Secondary . | . . . Self-Inflicted Damage . | . . . Shots . | . . . Rammed . | . . . Targets Rammed . | . . . Kicked . | . . . Crushed . | . . . Highest Temperature 20 | . 20 . Average Temperature 5 | . 5 . Received Heat Transfer 531 | . 444 87 Siege Activations . | . . . Martial Activations . | . . . Shielding Activations . | . . . Robots Disrupted . | . . . Combat Hostiles . | . . . Robots Corrupted 2 | . 2 . Combat Hostiles 1 | . 1 . Parts Fried 1 | . 1 . Impact Corruptions 5 | . 5 . Robots Melted . | . . . Combat Hostiles . | . . . Parts Melted . | . . . Heat Transferred . | . . . Parts Sabotaged . | . . . Parts Stolen . | . . . Parts Stripped . | . . . Power Chain Reactions . | . . . Alert | -11 -10 -10 ------- Run | Yrd Mat Sub Maximum Alert Level . | . . . Low Security (%) 100 | 100 100 . Level 1 . | . . . Level 2 . | . . . Level 3 . | . . . Level 4 . | . . . Level 5 . | . . . High Security . | . . . Max Security . | . . . Peak Influence 73 | 5 73 . Initial . | . . . Average 16 | 1 18 . Influence Increases 267 | 5 262 . Destroy 0b10 Robot/C 200 | . 200 . Destroy 0b10 Robot/NC 25 | 5 20 . Destroy Leader 42 | . 42 . Influence Decreases 267 | 5 201 61 Entered New Map 30 | . . 30 Time Decay 237 | 5 201 31 Squads Dispatched . | . . . Investigation . | . . . Extermination . | . . . Reinforcement . | . . . Assault . | . . . Garrison . | . . . Intercept . | . . . Searches Triggered . | . . . Construction Impeded . | . . . Haulers Reinforced . | . . . Active Scanning Responses . | . . . Cargo Convoy Interrupts . | . . . Stealth | -11 -10 -10 --------- Run | Yrd Mat Sub Distress Signals . | . . . Communications Jammed . | . . . Distress Signals . | . . . Times Spotted 24 | . 16 8 Peak Tracking Total 6 | . 2 6 Tactical Retreats 3 | . 3 . ECM-based Alert Blocks 3 | . 3 . Traps | -11 -10 -10 ------- Run | Yrd Mat Sub Traps Triggered . | . . . Indirectly . | . . . Trap Hack Attempts . | . . . Triggered . | . . . Disarmed . | . . . Reprogrammed . | . . . Reused . | . . . Traps Extracted . | . . . Installed . | . . . Triggered . | . . . Machines | -11 -10 -10 ---------- Run | Yrd Mat Sub Machines Disabled . | . . . Max in Single Turn . | . . . Machines Repaired . | . . . Machines Dismantled . | . . . Machines Sabotaged . | . . . Overloaded Fab Kills . | . . . Hacking | -11 -10 -10 --------- Run | Yrd Mat Sub Machines Accessed 4 | . 4 . Terminals 3 | . 3 . Fabricators . | . . . Repair Stations 1 | . 1 . Recycling Units . | . . . Scanalyzers . | . . . Garrison Access . | . . . Total Hacks 9 | . 9 . Successful 4 | . 4 . Failed 5 | . 5 . Catastrophic . | . . . Database Lockouts . | . . . Manual 1 | . 1 . Terminals 6 | . 6 . Fabricators . | . . . Repair Stations 3 | . 3 . Recycling Units . | . . . Scanalyzers . | . . . Garrison Access . | . . . Terminal Hacks 2 | . 2 . Record 1 | . 1 . Emergency Access Points 1 | . 1 . Fabricator Hacks . | . . . Repair Station Hacks 2 | . 2 . Scan Component 1 | . 1 . Repair 1 | . 1 . Recycling Unit Hacks . | . . . Scanalyzer . | . . . Garrison Access Hacks . | . . . Unauthorized Hacks . | . . . Terminals . | . . . Fabricators . | . . . Repair Stations . | . . . Recycling Units . | . . . Scanalyzers . | . . . Garrison Access . | . . . Data Cores Recovered . | . . . Used . | . . . Hacking Detections 4 | . 4 . Full Trace Events . | . . . Feedback Events . | . . . Feedback Blocked . | . . . Robot Schematics Acquired . | . . . Robots Built . | . . . Authchips . | . . . Time . | . . . Total Robot Build Rating . | . . . Part Schematics Acquired . | . . . Parts Built . | . . . Authchips . | . . . Time . | . . . Total Part Build Rating . | . . . Part Studies Acquired . | . . . Parts Repaired 1 | . 1 . Time 26 | . 26 . Parts Recycled . | . . . Recycled Matter . | . . . Retrieved Matter . | . . . Retrieved Components . | . . . Parts Scanalyzed . | . . . Part Schematics Acquired . | . . . Parts Damaged . | . . . Bothacking | -11 -10 -10 ------------ Run | Yrd Mat Sub Used RIF Installer . | . . . Robots Hacked . | . . . Non-combat . | . . . Combat . | . . . Robot Hacks Applied . | . . . Relay Couplers Released . | . . . Fabnet Peak Effective % . | . . . Robots Rewired . | . . . Allies Hacked . | . . . Hacks Repelled . | . . . Allies | -11 -10 -10 -------- Run | Yrd Mat Sub Total Allies . | . . . Largest Group . | . . . Highest-Rated Group . | . . . Highest-Rated Ally . | . . . Total Orders . | . . . Ally Attacks . | . . . Total Damage . | . . . Kills . | . . . Allies Corrupted . | . . . Allies Melted . | . . . Intel | -11 -10 -10 ------- Run | Yrd Mat Sub Active Infowar (turns) 1017 | . 926 91 ECM 1017 | . 926 91 Robot Analysis Total . | . . . Derelict Logs Recovered . | . . . Drone Launches . | . . . Drone Recoveries . | . . . Exploration | -11 -10 -10 ------------- Run | Yrd Mat Sub Turns Passed 1138 | 84 963 91 Spaces Moved 548 | 49 454 45 Core 14 | 13 . 1 Treads . | . . . Legs 534 | 36 454 44 Wheels . | . . . Hover . | . . . Flight . | . . . Fastest Speed 50 | 50 120 120 Average Speed 158 | 101 166 145 Slowest Speed 260 | 120 260 200 Overloaded Moves . | . . . Propulsion Burnouts . | . . . Robots Hopped . | . . . Potential Cave-ins . | . . . Cave-ins Triggered . | . . . Exploration Rate (%) 25 | 4 64 7 Regions Visited 2 Branch Regions 1 Pre-discovered Areas . | . . . Known Exits Taken . | . . . Unknown Exits Taken 2 | 1 1 . Scrap Searched . | . . . Spaces Dug . | . . . Terrain Destroyed . | . . . Melee . | . . . Projectile . | . . . AOE . | . . . Terrain Rammed . | . . . Walls Destroyed . | . . . Machines Disabled . | . . . Actions | -11 -10 -10 --------- Run | Yrd Mat Sub Total 710 | 71 578 61 Wait 51 | . 45 6 Move 546 | 48 453 45 Hop . | . . . Pick Up 24 | 10 14 . Fast Attach . | . . . Attach 9 | 7 2 . Detach . | . . . Swap 8 | . 6 2 Drop 8 | . 7 1 Fire 51 | 6 38 7 Melee 13 | . 13 . Ram . | . . . Kick . | . . . Crush . | . . . Escape Stasis . | . . . Rewire . | . . . Trap . | . . . Miscellaneous . | . . . Route ------- -11/Scrapyard -10/Materials (discovered 3 exits: [*Mat x2] / [*Sub]) -10/Subcaves History --------- Turn | Location | Event 4 | -11/Scrapyard | Discovered new exit (range 14) 85 | -11/Scrapyard | Entered Materials 333 | -10/Materials | Build established: Mutant 355 | -10/Materials | Repaired Ion Engine 428 | -10/Materials | Discovered new exit (range 16) 745 | -10/Materials | Discovered new exit (range 13) 883 | -10/Materials | Core integrity fell below 50% 1015 | -10/Materials | Discovered new exit (range 11) 1048 | -10/Materials | Entered Subcaves 1126 | -10/Subcaves | Ambushed by swarm of Subdwellers 1134 | -10/Subcaves | Core integrity fell below 20% 1139 | -10/Subcaves | Destroyed by OZ-2U4(R) with Subdweller Laser Last Messages --------------- Machinery. 01129_ S5-O02(R) emerges from the Twisted Machinery. 01129_ Aluminum Leg destroyed. 01130_ OZ-2U4(R) emerges from the Twisted Machinery. 01130_ 8V-ZKD(g): "Sorry we're late! Had another grouchy Sub to deal with. Who's the new fellow?" 01131_ 1E-TZC(R) emerges from the Twisted Machinery. 01131_ 3K-EWY(R) emerges from the Twisted Machinery. 01133_ S5-O02(R) destroyed. 01134_ Lgt. Assault Rifle destroyed. 01137_ Assault Rifle destroyed. 01137_ Aluminum Leg destroyed. 01138_ Ion Engine destroyed. 01139_ A6-MWX(R) emerges from the Twisted Machinery. Map ----- +----------------------------------------------------+ | | | | | ?????????????????????????????????????????????????? | | ?????????????????????????????????????????????????? | | ?????????????????????????????????????????????????? | | ?????????????????????????????????????????????????? | | ?????????????????????????????????????????????????? | | ?????????????????????????????????????????????????? | | ?????????????????????????????????????????????????? | | ?????????????????????????????????????????????????? | | ?????????????????????????????????????????????????? | | ?????????????????????????????????????????????????? | | ?????????????????????????????????????????????????? | | ?????????????????????????????????????????????????? | | ?????????????????????????????????????????????????? | | ?????????????????????????????????????????????????? | | ?????????????????????????????????????????????????? | | ????????##??? #???##???#####?????????????????????? | | #??##### #?# ### ???? #"##????????????????????? | | ##?# # ??? ?##?#R" #????????????????????? | | ???% ##?? # ##""=##?#??????? ?????????? | | ???? ????? RRRR&# ## # ??????? | | #????# #?????? ???# R& ??????? | | ##??## #??????? #??## ??????? | | ##?# ##??????? #??# ####### ??????? | | "### ###??#### #??##g@ #?????????? ???????? | | ""&% #### ## #####hg##?????????????????????? | | ! !% ## ## ##??????????????????????? | | """ &&%% ##??????????????????????? | | # #"" "%&] % % #??????????????????????? | | "### """% %&"& # # ## ##??????????????????????? | | """%### ###### #???????????????????????? | | % ## " #?# ""#???# #???????????????????????? | | ##?# ""#?# "##???## ???????????????????????? | | ???# """?# ###????? #??????????????????????? | | ????# """? ##???????# #??????????????????????? | | ?????# """#?????????# #??????????????????????? | | ?????# % ?"#??????????# ??????????????????????? | | ????? ??????????????# ??????????????????????? | | ????? ?????????????? ??????????????????????? | | ????? ???????????????? ?????????????????????? | | ?????????????????????? ?????????????????????? | | ?????????????????????? ## ?????????????????????? | | ?????????????????????? ?? ?????????????????????? | | ??????????????????????#?? ??????????????????????? | | ?????????????????????????????????????????????????? | | ?????????????????????????????????????????????????? | | ?????????????????????????????????????????????????? | | ?????????????????????????????????????????????????? | | ?????????????????????????????????????????????????? | +----------------------------------------------------+ Best States ------------- Heat Dissipation 25 Energy Generation 10 Energy Capacity 250 Matter Stores 300 Matter Capacity 300 Sight Range 16 Terrain Scan Density 10 ECM Strength 1 Evasion (%) 55 Item Schematics ----------------- None Robot Schematics ------------------ None Fabricated ------------ Nothing Repaired ---------- Ion Engine | 3% | -10/Materials Studied --------- None Alien Tech Used ----------------- None Achievements -------------- None Challenges ------------ None Game ------ Seed SiegeBeamFlightbrick Manual? 0 Play Time 00:14:01 Cumulative 18.1 hours Start 2025.12.08 @ 21:33:08 End 2025.12.08 @ 21:46:14 Sessions 1 Manual Loads 0 Difficulty Rogue Special Mode None Game No. 47 Rogue 47 Adventurer 0 Explorer 0 Win Type - Total 0 Types 0/0/0/0/0/0/0/0/0/0 Lore% 5 Gallery% 16 Achievement% 11 Wizard Run 0 Options --------- Layout 1 ASCII 0 Keyboard 1 Movement Numpad Keybinds 0 Fullscreen 1 Font 32/SmallcapsGlow Map View 50x40 Zoom Use 0% Tactical HUD 1 Map Filters NONE Filters NONE Steam 1 RUN: a5a42192-37f9-4806-84e7-6ae7a38d0c1d